bitfinex/quotes_SOLUSD_20241223
["timestamp","ask_amount","ask_price","bid_price","bid_amount"]
[1734970026399,20.0,181.77,181.7,20.97990874]
[1734970026609,20.0,181.77,181.69,20.97990874]
[1734970026924,5.50279034,181.87,181.77,0.12549]
[1734970026925,6.4235,181.87,181.77,0.12549]
[1734970027105,6.2012,181.87,181.79,20.97990874]
[1734970028035,6.2012,181.87,181.79,1.83322919]
[1734970028394,20.0,181.84,181.77,21.10539874]
[1734970028725,20.0,181.84,181.76,20.97990874]
[1734970029225,20.0,181.84,181.78,20.97990874]
[1734970029594,20.0,181.84,181.8,20.97990874]
[1734970029901,6.6522,181.92,181.83,20.97990874]
[1734970030116,6.6522,181.92,181.84,20.97990874]
[1734970030421,6.6522,181.92,181.82,20.97990874]
[1734970030637,6.6522,181.92,181.74,13.7553]
[1734970030638,0.12549,181.89,181.74,13.7553]
[1734970030807,0.12549,181.89,181.75,20.97990874]
[1734970031211,23.902374,181.89,181.76,20.97990874]
[1734970031395,20.0,181.86,181.76,20.97990874]
[1734970031896,20.0,181.86,181.79,20.97990874]
[1734970032213,20.0,181.86,181.77,20.97990874]
[1734970032529,20.0,181.86,181.75,20.97990874]
[1734970032993,20.0,181.86,181.76,0.12549]
[1734970033195,20.0,181.86,181.75,20.97990874]
[1734970034239,20.0,181.86,181.77,20.97990874]
[1734970034442,20.0,181.86,181.79,20.97990874]
[1734970035641,20.0,181.86,181.75,20.97990874]
[1734970035840,20.0,181.82,181.7,34.73820874]
[1734970036048,20.0,181.78,181.67,20.97990874]
[1734970036343,23.776884,181.8,181.64,20.97990874]
[1734970036344,20.0,181.77,181.64,20.97990874]
[1734970036562,20.0,181.73,181.64,20.97990874]
[1734970038222,20.0,181.73,181.62,34.74410874]
[1734970038418,20.0,181.69,181.6,21.66347114]
[1734970038824,20.0,181.69,181.6,0.6835624]
[1734970039622,20.0,181.69,181.59,20.86172444]
[1734970040453,20.0,181.69,181.61,20.97990874]
[1734970040660,26.291,181.69,181.59,20.97990874]
[1734970040951,6.291,181.69,181.62,0.12549]
[1734970041132,62.9506,181.78,181.55,0.82589689]
[1734970041133,6.4028,181.74,181.65,20.97990874]
[1734970041457,6.4028,181.74,181.67,20.97990874]
[1734970042126,6.4028,181.74,181.63,0.82543861]
[1734970042127,6.4028,181.74,181.65,20.97990874]
[1734970042350,6.4028,181.74,181.63,20.97990874]
[1734970042854,20.0,181.71,181.6,20.97990874]
[1734970043024,20.0,181.69,181.58,20.97990874]
[1734970043428,20.0,181.69,181.58,0.12549]
[1734970043728,20.0,181.7,181.58,0.12549]
[1734970044072,81.8324,181.7,181.55,20.97990874]
[1734970044354,26.0564,181.64,181.52,20.97990874]
[1734970044599,26.0564,181.64,181.54,0.12549]
[1734970044923,26.0564,181.64,181.56,20.97990874]
[1734970045129,26.0564,181.64,181.58,20.97990874]
[1734970045549,26.0564,181.64,181.5,42.9023]
[1734970045550,26.0564,181.64,181.55,20.97990874]
[1734970045851,26.0564,181.64,181.57,20.97990874]
[1734970046154,26.0564,181.64,181.55,20.97990874]
[1734970046556,26.0564,181.64,181.53,20.97990874]
[1734970046759,26.0564,181.64,181.54,20.97990874]
[1734970046932,26.0564,181.64,181.57,0.12549]
[1734970047359,26.0564,181.64,181.57,21.10539874]
[1734970047824,26.0564,181.64,181.54,20.97990874]
[1734970048031,26.0564,181.64,181.53,20.97990874]
[1734970048230,23.776884,181.63,181.51,20.97990874]
[1734970048642,20.0,181.6,181.52,20.97990874]
[1734970050558,20.0,181.6,181.5,20.97990874]
[1734970050737,20.0,181.6,181.48,20.97990874]
[1734970051138,83.976884,181.63,181.48,20.97990874]
[1734970051139,21.654,181.59,181.48,20.97990874]
[1734970052880,21.654,181.59,181.48,0.12549]
[1734970053078,83.976884,181.58,181.46,20.97990874]
[1734970053247,20.0,181.54,181.41,21.66347114]
[1734970053775,20.0,181.49,181.41,0.6835624]
[1734970055257,23.776884,181.48,181.41,0.6835624]
[1734970055458,20.0,181.44,181.41,0.6835624]
[1734970056353,23.999184,181.43,181.3,34.76850874]
[1734970056555,23.999184,181.43,181.3,13.7886]
[1734970056785,20.0,181.4,181.27,13.7915]
[1734970056990,20.0,181.4,181.28,20.97990874]
[1734970057486,20.0,181.39,181.28,20.97990874]
[1734970057779,6.6658,181.38,181.24,13.7938]
[1734970057951,43.776884,181.33,181.23,0.6835624]
[1734970058150,20.0,181.32,181.23,0.6835624]
[1734970058351,20.0,181.3,181.23,0.6835624]
[1734970058966,60.2,181.32,181.23,0.6835624]
[1734970059170,1.2054,181.37,181.23,0.6835624]
[1734970059171,20.0,181.33,181.23,0.6835624]
[1734970059789,61.4054,181.37,181.24,0.12549]
[1734970060284,20.0,181.34,181.24,0.12549]
[1734970060484,20.0,181.3,181.23,0.6835624]
[1734970060787,20.0,181.26,181.23,0.6835624]
[1734970060992,20.0,181.25,181.23,0.6835624]
[1734970061166,103.976884,181.24,181.23,0.6835624]
[1734970061369,103.976884,181.24,181.1,20.97990874]
[1734970061370,20.0,181.24,181.1,20.97990874]
[1734970061568,20.0,181.22,181.1,20.97990874]
[1734970061873,20.0,181.22,181.09,20.97990874]
[1734970062260,42.111206,181.21,181.07,20.97990874]
[1734970062462,42.111206,181.21,181.08,13.8055]
[1734970062656,42.111206,181.21,181.06,20.97990874]
[1734970062854,20.0,181.17,181.09,20.97990874]
[1734970063084,22.111206,181.21,181.1,0.12549]
[1734970063288,22.111206,181.21,181.14,20.97990874]
[1734970063781,22.111206,181.21,181.13,20.97990874]
[1734970064164,22.111206,181.21,181.14,20.97990874]
[1734970064595,22.111206,181.21,181.12,0.12549]
[1734970064756,22.111206,181.21,181.09,13.8049]
[1734970065359,22.111206,181.21,181.12,0.12549]
[1734970065561,0.5218,181.26,181.13,20.97990874]
[1734970065760,20.0,181.25,181.13,20.97990874]
[1734970066091,20.0,181.25,181.12,21.10539874]
[1734970067292,20.0,181.24,181.12,21.10539874]
[1734970068073,20.0,181.24,181.14,0.12549]
[1734970068483,20.0,181.24,181.16,44.88228274]
[1734970068797,6.1537,181.29,181.16,44.88228274]
[1734970069095,22.101677,181.28,181.16,44.88228274]
[1734970069297,22.101677,181.28,181.16,0.12549]
[1734970069489,22.101677,181.28,181.18,0.12549]
[1734970069667,20.0,181.25,181.18,0.12549]
[1734970071202,20.0,181.25,181.14,34.78070874]
[1734970071391,20.0,181.25,181.12,20.97990874]
[1734970071701,20.0,181.25,181.13,21.80781007]
[1734970071891,20.0,181.25,181.16,0.12549]
[1734970072089,20.0,181.25,181.16,0.95312909]
[1734970072274,20.0,181.25,181.15,20.97990874]
[1734970072885,20.0,181.25,181.16,23.902374]
[1734970073272,22.101677,181.28,181.16,44.88228274]
[1734970074640,22.101677,181.28,181.18,23.902374]
[1734970074904,6.2027,181.34,181.2,44.88228274]
[1734970075107,22.096208,181.31,181.2,23.902374]
[1734970076684,6.2027,181.34,181.22,23.902374]
[1734970076884,22.09467,181.33,181.22,23.902374]
[1734970077090,6.2027,181.34,181.26,23.902374]
[1734970077291,275.73739633,181.52,181.28,23.902374]
[1734970077292,22.088178,181.38,181.28,23.902374]
[1734970078073,6.2027,181.39,181.25,0.82720864]
[1734970078074,6.2027,181.39,181.27,23.902374]
[1734970078280,6.2027,181.39,181.29,23.902374]
[1734970078685,12.898453,181.39,181.29,23.902374]
[1734970079211,6.695753,181.39,181.29,0.12549]
[1734970079378,6.2027,181.44,181.31,23.902374]
[1734970079588,6.2027,181.44,181.33,23.902374]
[1734970081381,6.2027,181.43,181.33,23.902374]
[1734970081591,20.0,181.4,181.33,0.12549]
[1734970082271,6.2027,181.43,181.33,23.902374]
[1734970082996,6.2027,181.43,181.33,0.12549]
[1734970083576,6.2027,181.43,181.33,23.902374]
[1734970083779,6.577,181.49,181.35,23.902374]
[1734970084190,22.076445,181.48,181.35,23.902374]
[1734970084815,22.076445,181.48,181.37,23.902374]
[1734970085018,0.5218,181.53,181.39,23.902374]
[1734970085305,6.1482,181.54,181.39,23.902374]
[1734970085723,6.1482,181.54,181.41,23.902374]
[1734970085882,22.073775,181.5,181.41,23.902374]
[1734970086090,6.1482,181.54,181.41,23.902374]
[1734970086486,6.1482,181.53,181.4,44.88228274]
[1734970086686,6.1482,181.53,181.37,7.7747]
[1734970086687,6.0587,181.59,181.44,44.88228274]
[1734970086911,11.09316944,181.63,181.5,0.12549]
[1734970087415,22.062461,181.59,181.48,1.614]
[1734970087717,22.062461,181.59,181.49,23.776884]
[1734970087932,5.03446944,181.63,181.52,0.12549]
[1734970088099,22.056225,181.64,181.56,0.12549]
[1734970088416,0.6835624,181.69,181.58,0.12549]
[1734970088618,0.6835624,181.69,181.6,23.902374]
[1734970088918,0.6835624,181.69,181.6,0.12549]
[1734970089588,0.6835624,181.69,181.6,15.50049]
[1734970089778,0.6835624,181.69,181.63,20.97990874]
[1734970089986,0.6835624,181.69,181.66,23.902374]
[1734970090880,0.6835624,181.69,181.62,23.776884]
[1734970091082,0.6835624,181.69,181.55,6.5475]
[1734970091515,20.6835624,181.69,181.55,6.5475]
[1734970091821,20.6835624,181.69,181.56,0.12549]
[1734970092115,20.6835624,181.69,181.55,6.5475]
[1734970092321,20.6835624,181.69,181.53,1.6298]
[1734970092322,20.0,181.64,181.53,1.6298]
[1734970092618,20.0,181.63,181.53,1.6298]
[1734970092787,20.0,181.63,181.53,22.60970874]
[1734970092981,20.0,181.63,181.54,0.12549]
[1734970093177,20.0,181.63,181.53,22.60970874]
[1734970093631,20.0,181.63,181.54,0.12549]
[1734970094229,20.0,181.63,181.45,0.82597202]
[1734970094230,103.976884,181.62,181.47,1.6272]
[1734970094429,20.0,181.59,181.47,1.6272]
[1734970094642,20.0,181.55,181.47,1.6272]
[1734970095327,20.0,181.57,181.48,0.12549]
[1734970095649,20.0,181.57,181.47,1.6272]
[1734970095821,9.1573651,181.61,181.47,1.6272]
[1734970095822,20.0,181.58,181.47,1.6272]
[1734970096017,20.0,181.58,181.48,0.12549]
[1734970096237,20.0,181.58,181.47,1.6272]
[1734970096549,69.3573651,181.61,181.48,0.12549]
[1734970096550,6.4042651,181.61,181.48,0.12549]
[1734970096846,2.7525,181.65,181.52,0.12549]
[1734970097031,60.2,181.67,181.52,0.12549]
[1734970097510,60.2,181.67,181.52,23.902374]
[1734970098044,60.2,181.66,181.52,23.902374]
[1734970098341,0.6835624,181.69,181.54,58.07247512]
[1734970098506,0.6835624,181.69,181.56,0.12549]
[1734970098709,0.6835624,181.69,181.57,34.17010112]
[1734970099023,0.6835624,181.69,181.62,23.902374]
[1734970099652,0.6835624,181.69,181.64,23.902374]
[1734970100013,0.6835624,181.69,181.64,0.12549]
[1734970100712,0.6835624,181.69,181.68,0.12549]
[1734970101431,0.6835624,181.69,181.66,34.17010112]
[1734970101743,0.6835624,181.69,181.68,0.12549]
[1734970103826,0.6835624,181.69,181.66,23.776884]
[1734970104351,0.6835624,181.69,181.61,34.17010112]
[1734970104756,0.6835624,181.69,181.6,0.12549]
[1734970104931,0.6835624,181.69,181.59,1.5585]
[1734970105135,20.6835624,181.69,181.59,1.5585]
[1734970105835,60.2,181.68,181.53,13.771]
[1734970106015,60.2,181.68,181.51,1.5233]
[1734970106016,20.0,181.63,181.51,1.5233]
[1734970106421,20.0,181.59,181.51,1.5233]
[1734970106620,20.0,181.58,181.45,13.7771]
[1734970107248,20.0,181.6,181.45,13.7771]
[1734970107567,20.0,181.56,181.43,1.542]
[1734970107922,20.0,181.56,181.44,0.12549]
[1734970108352,20.0,181.56,181.44,34.29559112]
[1734970108761,20.0,181.56,181.43,1.542]
[1734970108924,20.0,181.55,181.44,0.12549]
[1734970109943,20.0,181.55,181.44,23.902374]
[1734970112045,20.0,181.55,181.44,0.12549]
[1734970112244,60.2,181.62,181.46,34.17010112]
[1734970112444,60.2,181.62,181.44,37.680974]
[1734970112445,60.2,181.62,181.49,0.12549]
[1734970112643,5.32595775,181.64,181.51,0.12549]
[1734970112950,60.2,181.63,181.51,0.12549]
[1734970113267,60.2,181.63,181.49,0.12549]
[1734970113562,60.2,181.63,181.49,23.902374]
[1734970114463,2.7527,181.64,181.53,0.12549]
[1734970115760,20.0,181.63,181.53,0.12549]
[1734970116063,2.7527,181.64,181.53,0.12549]
[1734970116460,2.7527,181.64,181.5,34.17010112]
[1734970116965,23.776884,181.61,181.46,34.17010112]
[1734970117139,20.0,181.58,181.46,34.17010112]
[1734970117541,20.0,181.58,181.47,0.12549]
[1734970117961,2.7527,181.64,181.49,34.29559112]
[1734970118265,23.776884,181.63,181.49,34.29559112]
[1734970119267,20.0,181.6,181.49,34.29559112]
[1734970119693,20.0,181.6,181.52,0.12549]
[1734970119852,2.7527,181.64,181.52,0.12549]
[1734970121475,23.776884,181.62,181.49,34.17010112]
[1734970121660,20.0,181.63,181.5,0.12549]
[1734970121857,20.0,181.63,181.52,0.12549]
[1734970122176,20.0,181.63,181.54,0.12549]
[1734970124075,20.0,181.63,181.51,34.17010112]
[1734970124252,2.7525,181.65,181.49,23.776884]
[1734970124253,20.0,181.59,181.49,34.17010112]
[1734970124457,20.0,181.59,181.47,34.17010112]
[1734970124886,20.0,181.59,181.5,0.12549]
[1734970125070,20.0,181.62,181.51,34.17010112]
[1734970125383,20.0,181.62,181.52,0.12549]
[1734970125952,60.2,181.67,181.52,0.12549]
[1734970126162,26.529284,181.66,181.52,0.12549]
[1734970126780,2.7524,181.66,181.54,0.12549]
[1734970126993,63.6354624,181.69,181.56,0.12549]
[1734970127231,0.6835624,181.69,181.56,0.12549]
[1734970127370,0.6835624,181.69,181.58,23.902374]
[1734970127570,0.6835624,181.69,181.61,0.12549]
[1734970128083,0.6835624,181.69,181.63,0.12549]
[1734970129077,0.6835624,181.69,181.66,0.12549]
[1734970129395,0.6835624,181.69,181.68,0.12549]
[1734970129558,0.6835624,181.69,181.68,34.29559112]
[1734970130088,0.6835624,181.69,181.68,0.12549]
[1734970130975,0.6835624,181.69,181.68,34.29559112]
[1734970132379,0.6835624,181.69,181.68,0.12549]
[1734970132775,0.6835624,181.69,181.68,34.29559112]
[1734970133311,0.6835624,181.69,181.68,0.12549]
[1734970134900,0.6835624,181.69,181.67,1.6609]
[1734970135278,0.6835624,181.69,181.66,6.2183]
[1734970135279,0.6835624,181.69,181.65,0.12549]
[1734970135695,0.6835624,181.69,181.62,34.17010112]
[1734970136092,0.6835624,181.69,181.61,1.5195]
[1734970136687,0.6835624,181.69,181.62,0.12549]
[1734970136894,0.6835624,181.69,181.61,1.5195]
[1734970137093,20.0,181.65,181.55,1.5675]
[1734970137404,43.776884,181.64,181.55,1.5675]
[1734970137717,20.0,181.61,181.55,1.5675]
[1734970138013,20.0,181.65,181.56,0.12549]
[1734970138395,20.0,181.65,181.55,1.5675]
[1734970138579,3.4355624,181.69,181.55,1.5675]
[1734970138580,20.0,181.64,181.55,1.5675]
[1734970138905,20.0,181.67,181.56,0.12549]
[1734970139481,3.4355624,181.69,181.59,0.12549]
[1734970139482,20.0,181.68,181.59,0.12549]
[1734970139873,0.6835624,181.69,181.59,58.07247512]
[1734970140077,0.6835624,181.69,181.61,0.12549]
[1734970141114,0.6835624,181.69,181.6,0.12549]
[1734970141482,23.776884,181.68,181.55,1.5675]
[1734970142010,0.6835624,181.69,181.55,1.5675]
[1734970142235,0.6835624,181.69,181.56,34.29559112]
[1734970142926,0.6835624,181.69,181.59,0.12549]
[1734970143506,0.6835624,181.69,181.61,0.12549]
[1734970145413,0.6835624,181.69,181.61,23.902374]
[1734970145613,0.6835624,181.69,181.63,0.12549]
[1734970145992,0.6835624,181.69,181.65,0.12549]
[1734970147428,0.6835624,181.69,181.62,34.99567584]
[1734970147601,0.6835624,181.69,181.6,40.26770112]
[1734970147995,0.6835624,181.69,181.65,0.12549]
[1734970148627,0.6835624,181.69,181.62,34.17010112]
[1734970148998,0.6835624,181.69,181.63,35.12112824]
[1734970149199,0.6835624,181.69,181.65,0.12549]
[1734970149892,0.6835624,181.69,181.67,0.12549]
[1734970151501,0.6835624,181.69,181.66,1.5321]
[1734970151714,0.6835624,181.69,181.6,21.4002]
[1734970152121,0.6835624,181.69,181.61,0.12549]
[1734970152451,0.6835624,181.69,181.6,7.6338]
[1734970152942,0.6835624,181.69,181.61,0.12549]
[1734970154331,20.0,181.65,181.55,8.3133]
[1734970154516,20.0,181.6,181.5,6.3807]
[1734970154719,20.0,181.59,181.5,6.3807]
[1734970155333,20.0,181.59,181.51,0.12549]
[1734970156430,20.0,181.59,181.5,6.3807]
[1734970156743,20.0,181.59,181.49,1.6221]
[1734970156744,20.0,181.58,181.49,1.6221]
[1734970156905,20.0,181.58,181.45,6.4824]
[1734970157105,20.0,181.56,181.45,6.4824]
[1734970157331,20.0,181.56,181.46,0.12549]
[1734970157738,20.0,181.56,181.46,20.98672903]
[1734970158431,20.0,181.56,181.44,20.98672903]
[1734970158626,20.0,181.55,181.44,20.98672903]
[1734970158828,20.0,181.55,181.45,0.12549]
[1734970160035,20.0,181.55,181.46,0.12549]
[1734970161416,20.0,181.55,181.44,21.11221903]
[1734970161739,20.0,181.55,181.46,0.12549]
[1734970162241,20.0,181.54,181.43,15.2909]
[1734970162443,20.0,181.54,181.43,1.5122]
[1734970162627,20.0,181.49,181.37,1.6237]
[1734970163012,60.2,181.52,181.4,20.98672903]
[1734970163214,20.0,181.54,181.44,0.12549]
[1734970163442,20.0,181.54,181.44,21.11221903]
[1734970163632,20.0,181.54,181.43,0.82638342]
[1734970163633,20.0,181.55,181.46,20.98672903]
[1734970163947,6.40305173,181.6,181.48,0.12549]
[1734970164458,9.1337,181.62,181.49,0.12549]
[1734970164800,6.3807,181.62,181.49,44.88910303]
[1734970165113,6.3807,181.62,181.51,23.902374]
[1734970165305,6.23,181.63,181.51,21.11221903]
[1734970165547,28.289538,181.63,181.51,21.11221903]
[1734970165753,20.0,181.6,181.51,0.12549]
[1734970166254,20.0,181.6,181.51,21.11221903]
[1734970166416,20.0,181.6,181.51,0.12549]
[1734970167531,6.1159,181.68,181.56,0.12549]
[1734970167714,0.6835624,181.69,181.58,0.12549]
[1734970167931,22.052633,181.68,181.58,23.902374]
[1734970168137,0.6835624,181.69,181.58,23.902374]
[1734970168315,0.6835624,181.69,181.56,20.98672903]
[1734970168527,0.6835624,181.69,181.57,0.12549]
[1734970169369,0.6835624,181.69,181.53,44.76361303]
[1734970169547,60.8835624,181.69,181.53,23.776884]
[1734970169949,23.776884,181.68,181.54,0.12549]
[1734970170458,20.0,181.65,181.54,21.11221903]
[1734970170677,20.0,181.65,181.54,0.12549]
[1734970170848,20.0,181.65,181.52,13.7725]
[1734970171033,20.0,181.65,181.53,0.12549]
[1734970171844,20.0,181.65,181.55,0.12549]
[1734970172058,20.0,181.65,181.54,16.902374]
[1734970172648,20.0,181.65,181.53,21.81273555]
[1734970172943,20.0,181.65,181.52,34.75922903]
[1734970173462,20.0,181.65,181.53,20.98672903]
[1734970173769,0.6835624,181.69,181.57,20.98672903]
[1734970174062,0.6835624,181.69,181.59,20.98672903]
[1734970174263,0.6835624,181.69,181.6,0.12549]
[1734970174579,0.6835624,181.69,181.52,7.8199]
[1734970174790,3.4355624,181.69,181.52,7.8199]
[1734970174957,6.40305173,181.68,181.52,7.8199]
[1734970175140,20.0,181.65,181.53,13.89729]
[1734970175468,23.4355624,181.69,181.53,34.88401903]
[1734970175656,20.0,181.67,181.55,0.12549]
[1734970175853,0.6835624,181.69,181.58,0.12549]
[1734970176468,60.8835624,181.69,181.53,34.75852903]
[1734970176659,60.8835624,181.69,181.54,0.12549]
[1734970177083,20.0,181.66,181.54,23.902374]
[1734970178471,20.0,181.66,181.56,0.12549]
[1734970179282,23.776884,181.65,181.51,34.75932903]
[1734970179680,20.0,181.62,181.51,34.75932903]
[1734970179893,20.0,181.66,181.53,0.12549]
[1734970180059,20.0,181.65,181.53,35.70999952]
[1734970180388,20.0,181.65,181.56,0.12549]
[1734970181265,20.0,181.65,181.53,34.75852903]
[1734970181664,60.2,181.68,181.56,20.0]
[1734970181865,23.776884,181.68,181.57,0.12549]
[1734970182161,20.0,181.65,181.57,0.12549]
[1734970182368,20.0,181.65,181.53,13.7718]
[1734970182369,20.0,181.64,181.53,13.7718]
[1734970182572,60.2,181.67,181.56,0.12549]
[1734970183086,0.6835624,181.69,181.58,0.12549]
[1734970183262,0.6835624,181.69,181.62,0.12549]
[1734970183879,0.6835624,181.69,181.63,0.12549]
[1734970184192,0.6835624,181.69,181.63,1.66959]
[1734970187278,0.6835624,181.69,181.59,20.98672903]
[1734970187777,0.6835624,181.69,181.58,1.6286]
[1734970188188,0.6835624,181.69,181.59,0.12549]
[1734970188376,0.6835624,181.69,181.58,1.6286]
[1734970188997,60.2,181.66,181.55,20.98672903]
[1734970189179,43.776884,181.61,181.52,1.5704]
[1734970189385,23.776884,181.59,181.47,7.9487]
[1734970189775,60.2,181.6,181.48,0.12549]
[1734970189963,60.2,181.6,181.49,20.98672903]
[1734970190283,20.0,181.6,181.5,21.93835283]
[1734970190485,20.0,181.6,181.51,0.12549]
[1734970190768,20.0,181.63,181.51,0.12549]
[1734970191676,23.776884,181.64,181.54,0.12549]
[1734970192092,6.1981,181.67,181.53,0.12549]
[1734970192404,23.776884,181.66,181.53,0.12549]
[1734970193086,20.0,181.63,181.53,0.12549]
[1734970193400,23.776884,181.62,181.48,13.7751]
[1734970193708,20.0,181.57,181.47,7.9487]
[1734970194403,20.0,181.57,181.48,0.12549]
[1734970194887,23.776884,181.62,181.48,44.88910303]
[1734970195091,23.776884,181.62,181.5,0.12549]
[1734970196803,20.0,181.63,181.51,41.11221903]
[1734970197294,20.0,181.63,181.51,20.12549]
[1734970197482,20.0,181.63,181.51,33.89879]
[1734970197885,20.0,181.63,181.51,13.89879]
[1734970198087,23.776884,181.62,181.51,13.89879]
[1734970198703,20.0,181.59,181.48,13.7756]
[1734970198893,83.976884,181.53,181.41,7.8106]
[1734970199071,20.0,181.49,181.37,6.2011]
[1734970199268,20.0,181.45,181.37,6.2011]
[1734970199472,20.0,181.45,181.35,10.18718546]
[1734970199820,20.0,181.44,181.35,10.18718546]
[1734970199997,20.0,181.44,181.36,0.12549]
[1734970200306,43.776884,181.43,181.35,10.18718546]
[1734970200473,20.0,181.37,181.29,1.6308]
[1734970200678,20.0,181.36,181.29,1.6308]
[1734970200883,20.0,181.36,181.23,1.6308]
[1734970201099,20.0,181.35,181.23,1.6308]
[1734970201605,20.0,181.34,181.23,1.6308]
[1734970201905,20.0,181.29,181.17,15.3841]
[1734970202273,20.0,181.29,181.17,1.5854]
[1734970202507,20.0,181.3,181.17,1.5854]
[1734970203212,20.0,181.26,181.17,1.5854]
[1734970204806,20.0,181.26,181.18,0.12549]
[1734970205107,20.0,181.25,181.18,0.12549]
[1734970205410,20.0,181.25,181.17,1.5854]
[1734970205915,20.0,181.23,181.11,1.5896]
[1734970206320,80.2,181.23,181.11,1.5896]
[1734970206519,20.0,181.19,181.11,1.5896]
[1734970207799,20.0,181.19,181.12,0.12549]
[1734970209311,20.0,181.21,181.12,0.12549]
[1734970209518,20.0,181.19,181.12,0.12549]
[1734970209722,20.98673,181.22,181.12,23.902374]
[1734970209923,60.2,181.28,181.12,23.902374]
[1734970210121,60.2,181.28,181.12,0.12549]
[1734970210326,22.10755,181.27,181.12,0.12549]
[1734970210512,60.32549,181.26,181.11,1.5896]
[1734970211026,83.976884,181.24,181.12,0.12549]
[1734970211229,20.0,181.21,181.12,0.12549]
[1734970211523,20.0,181.2,181.12,0.12549]
[1734970212118,20.0,181.2,181.11,1.5896]
[1734970212320,20.0,181.18,181.06,6.3433]
[1734970213106,20.0,181.18,181.05,1.6448]
[1734970213107,20.0,181.16,181.05,1.6448]
[1734970213313,20.0,181.15,181.05,1.6448]
[1734970213629,20.0,181.14,181.05,1.6448]
[1734970213928,20.0,181.14,181.06,0.12549]
[1734970214132,23.47512898,181.5,181.09,0.12549]
[1734970214133,20.0,181.19,181.09,0.12549]
[1734970214708,20.0,181.18,181.06,44.76361303]
[1734970214907,20.0,181.18,181.08,20.98672903]
[1734970215121,20.0,181.18,181.09,21.11221903]
[1734970215429,20.0,181.21,181.11,21.11221903]
[1734970215614,20.0,181.21,181.11,0.12549]
[1734970217611,20.0,181.21,181.09,20.98672903]
[1734970217808,5.32717112,181.24,181.11,20.98672903]
[1734970218001,5.32717112,181.24,181.13,20.98672903]
[1734970218243,7.04207498,181.29,181.15,21.11221903]
[1734970218409,60.2,181.28,181.17,0.12549]
[1734970219152,7.04207498,181.29,181.17,0.12549]
[1734970219519,7.04207498,181.29,181.17,23.902374]
[1734970220103,20.0,181.24,181.17,0.12549]
[1734970221846,7.04207498,181.29,181.17,44.88910303]
[1734970222015,60.2,181.32,181.2,0.12549]
[1734970222636,60.2,181.32,181.2,23.902374]
[1734970222837,64.88814787,181.32,181.2,23.902374]
[1734970223046,64.88814787,181.32,181.18,27.44222903]
[1734970223655,20.0,181.29,181.19,0.12549]
[1734970224044,20.0,181.29,181.19,44.88910303]
[1734970224357,60.2,181.37,181.27,0.12549]
[1734970224564,22.09238,181.36,181.31,0.12549]
[1734970224749,60.2,181.46,181.33,23.902374]
[1734970224949,4.68874162,181.47,181.33,23.902374]
[1734970225267,4.68874162,181.47,181.31,23.776884]
[1734970225553,4.68874162,181.47,181.34,0.12549]
[1734970225920,20.0,181.44,181.34,0.12549]
[1734970227622,64.88874162,181.47,181.34,0.12549]
[1734970227828,64.88874162,181.47,181.33,44.76361303]
[1734970227829,4.68874162,181.47,181.37,23.902374]
[1734970228158,64.88874162,181.5,181.37,0.12549]
[1734970228324,67.64354162,181.5,181.37,0.12549]
[1734970228526,60.2,181.49,181.33,23.776884]
[1734970228852,60.2,181.49,181.31,20.98672903]
[1734970228853,4.68874162,181.48,181.31,20.98672903]
[1734970229037,60.2,181.47,181.31,20.98672903]
[1734970229227,20.0,181.4,181.3,6.6085]
[1734970229752,20.986729,181.41,181.31,21.11221903]
[1734970229965,20.0,181.45,181.31,0.12549]